Cogmind - Beta 12 @@@ ROGUE MODE // 2024.01.08 @ 10:20:07 Player: sasha Result: Destroyed by D-53 Grenadier with Mini Grenade Launcher Performance ------------- Evolutions (0) 0 Regions Visited (2) 400 Robots Destroyed (7) 35 Value Destroyed (134) 134 Prototype IDs (0) 0 Alien Tech Used (0) 0 Bonus (0) 0 TOTAL SCORE: 569 Bonus ------- None Cogmind --------- Core Integrity 0/250 Matter 250/300 Energy 99/100 System Corruption 0% Temperature Cool (0) Movement Rolling (100) Location -10/Mines Parts ------- > --- POWER (1) -------- (None) > --- PROPULSION (2) --- Light Treads Compact Wheel > --- UTILITY (2) ------ Small Storage Unit > --- WEAPON (2) ------- Mace > --- INVENTORY (8) ---- Light Nuclear Core Light Treads Improved Aluminum Leg Improved Aluminum Leg Improved Aluminum Leg High-capacity Storage Unit Mining Laser Peak State ------------ > --- POWER ------------ Light Ion Engine > --- PROPULSION ------- Aluminum Leg Improved Aluminum Leg > --- UTILITY ---------- Small Storage Unit Visual Processing Unit > --- WEAPON ----------- Assault Rifle Mace > --- INVENTORY -------- Light Treads Light Treads Aluminum Leg Improved Aluminum Leg Improved Aluminum Leg Improved Aluminum Leg Compact Wheel Compact Wheel [Rating: 11] Favorites ----------- Power Light Ion Engine Engine Light Ion Engine Propulsion Aluminum Leg Treads Light Treads Leg Aluminum Leg Wheel Compact Wheel Utility Small Storage Unit Storage Small Storage Unit Processor Visual Processing Unit Weapon Assault Rifle Ballistic Gun Assault Rifle Impact Weapon Mace Build | -11 -10 -10 ------- Run | Jun Mat Min Slots Evolved . | . . . Power . | . . . Propulsion . | . . . Utility . | . . . Weapon . | . . . Parts Attached 15 | 3 10 2 Power 2 | 1 1 . Engine 2 | 1 1 . Core . | . . . Reactor . | . . . Propulsion 7 | . 5 2 Treads 2 | . 2 . Leg 3 | . 3 . Wheel 2 | . . 2 Hover . | . . . Flight . | . . . Utility 4 | 1 3 . Device . | . . . Storage 3 | 1 2 . Processor 1 | . 1 . Hackware . | . . . Protection . | . . . Artifact . | . . . Weapon 2 | 1 1 . Energy Gun . | . . . Energy Cannon . | . . . Ballistic Gun 1 | 1 . . Ballistic Cannon . | . . . Launcher . | . . . Special Weapon . | . . . Impact Weapon 1 | . 1 . Slashing Weapon . | . . . Piercing Weapon . | . . . Special Melee Weapon . | . . . Unidentified Prototypes . | . . . Parts Lost 4 | . . 4 Power 1 | . . 1 Propulsion 1 | . . 1 Utility 1 | . . 1 Weapon 1 | . . 1 Highest Loss Streak 4 | . . 4 To Critical Strikes . | . . . Average Slot Usage (%) 85 | . 86 71 Engine 13 | . 14 3 Treads 5 | . 4 17 Leg 16 | . 18 . Storage 14 | . 14 14 Processor 8 | . 8 7 Ballistic Gun 13 | . 14 3 Impact Weapon 12 | . 11 14 Naked Turns . | . . . Heaviest Build 12 | 10 12 12 Greatest Support 40 | 3 40 40 Greatest Overweight (x) 3 | 3 3 . Average Overweight (x) . | 1 . . Largest Inventory Capacity 20 | 8 20 8 Average Capacity 8 | 7 8 8 Most Carried 8 | 7 8 8 Average Carried 6 | 5 7 7 Final Capacity 8 | 8 8 8 Final Carried 8 | 6 8 7 Class Distribution -------------------- 100% | Mutant Dominant Class ---------------- Mutant | -10/Materials Mutant | -10/Mines Resources | -11 -10 -10 ----------- Run | Jun Mat Min Matter Collected 346 | 196 150 . Remotely . | . . . Salvage Created 166 | . 166 . Parts 17 | . 17 . Haulers Intercepted . | . . . Recyclers Shooed . | . . . Parts Field Recycled . | . . . Retrieved Matter . | . . . Parts Self-Destructed . | . . . Prevented . | . . . Kills | -11 -10 -10 ------- Run | Jun Mat Min Combat Hostiles Destroyed 4 | . 4 . Guns 4 | . 4 . Classes Destroyed 5 | . 5 . Worker 1 | . 1 . Operator 1 | . 1 . Watcher 1 | . 1 . Swarmer 2 | . 2 . Grunt 2 | . 2 . Best Kill Streak 3 | . 3 . Combat Bots Only 2 | . 2 . Max Kills in Single Turn 1 | . 1 . Gunslinging . | . . . Exploded . | . . . Melee . | . . . Uniques/NPCs Destroyed . | . . . Combat | -11 -10 -10 -------- Run | Jun Mat Min Damage Taken 750 | . 183 567 Core 255 | . 44 211 Absorbed by Shields . | . . . Core Remaining (%) 100 | 100 . . Volleys Fired 22 | . 22 . Largest 1 | . 1 . Hottest 20 | . 20 . Shots Fired 22 | . 22 . Gun 22 | . 22 . Cannon . | . . . Launcher . | . . . Special . | . . . Kinetic 22 | . 22 . Thermal . | . . . Explosive . | . . . Electromagnetic . | . . . Robot Hit Streak 4 | . 4 . Robot Miss Streak 3 | . 3 . Penetration Max . | . . . Secondary Targets . | . . . Shots Hit Robots 13 | . 13 . Core Hits 10 | . 10 . Critical Kills . | . . . Critical Parts Destroyed . | . . . Critical Strikes . | . . . Melee Attacks . | . . . Impact . | . . . Slashing . | . . . Piercing . | . . . Sneak Attacks . | . . . Combat Hostiles . | . . . Follow-up Attacks . | . . . Damage Inflicted 150 | . 150 . Guns 150 | . 150 . Cannons . | . . . Explosions . | . . . Melee . | . . . Ramming . | . . . Kinetic 150 | . 150 . Thermal . | . . . Explosive . | . . . Electromagnetic . | . . . Impact . | . . . Slashing . | . . . Piercing . | . . . Highest Corruption . | . . . Average Corruption . | . . . Corruption Purged . | . . . Corruption Blocked . | . . . Overload Shots . | . . . Overflow Damage . | . . . Projectiles . | . . . Explosions . | . . . Melee . | . . . Knockbacks . | . . . Impact . | . . . Kinetic . | . . . Secondary . | . . . Self-Inflicted Damage . | . . . Shots . | . . . Rammed . | . . . Targets Rammed . | . . . Kicked . | . . . Crushed . | . . . Highest Temperature 5 | . 5 . Average Temperature 5 | . 5 . Received Heat Transfer 45 | . 45 . Siege Activations . | . . . Robots Corrupted . | . . . Combat Hostiles . | . . . Parts Fried . | . . . Impact Corruptions . | . . . Robots Melted . | . . . Combat Hostiles . | . . . Parts Melted . | . . . Heat Transferred . | . . . Parts Sabotaged . | . . . Parts Stolen . | . . . Parts Stripped . | . . . Power Chain Reactions . | . . . Missiles Intercepted . | . . . Alert | -11 -10 -10 ------- Run | Jun Mat Min Peak Influence 210 | . 210 81 Initial 81 | . . 81 Average 106 | . 134 53 Maximum Alert Level 1 | . 1 . Low Security (%) 89 | 100 85 100 Level 1 10 | . 14 . Level 2 . | . . . Level 3 . | . . . Level 4 . | . . . Level 5 . | . . . High Security . | . . . Max Security . | . . . Squads Dispatched . | . . . Investigation . | . . . Extermination . | . . . Reinforcement . | . . . Assault . | . . . Garrison . | . . . Intercept . | . . . Searches Triggered . | . . . Construction Impeded . | . . . Haulers Reinforced . | . . . Active Scanning Responses . | . . . Cargo Convoy Interrupts . | . . . Stealth | -11 -10 -10 --------- Run | Jun Mat Min Distress Signals 1 | . 1 . Communications Jammed . | . . . Distress Signals . | . . . Times Spotted 15 | . 10 5 Peak Tracking Total 6 | . 6 5 Tactical Retreats 1 | . 1 . Traps | -11 -10 -10 ------- Run | Jun Mat Min Traps Triggered . | . . . Indirectly . | . . . Trap Hack Attempts . | . . . Triggered . | . . . Disarmed . | . . . Reprogrammed . | . . . Reused . | . . . Traps Extracted . | . . . Installed . | . . . Triggered . | . . . Machines | -11 -10 -10 ---------- Run | Jun Mat Min Machines Disabled . | . . . Max in Single Turn . | . . . Machines Repaired . | . . . Machines Sabotaged . | . . . Overloaded Fab Kills . | . . . Hacking | -11 -10 -10 --------- Run | Jun Mat Min Machines Accessed 2 | . 2 . Terminals 2 | . 2 . Fabricators . | . . . Repair Stations . | . . . Recycling Units . | . . . Scanalyzers . | . . . Garrison Access . | . . . Total Hacks 4 | . 4 . Successful 2 | . 2 . Failed 2 | . 2 . Catastrophic . | . . . Database Lockouts . | . . . Manual 4 | . 4 . Terminals 4 | . 4 . Fabricators . | . . . Repair Stations . | . . . Recycling Units . | . . . Scanalyzers . | . . . Garrison Access . | . . . Terminal Hacks 2 | . 2 . Branch Access Points 1 | . 1 . Emergency Access Points 1 | . 1 . Fabricator Hacks . | . . . Repair Station Hacks . | . . . Recycling Unit Hacks . | . . . Scanalyzer . | . . . Garrison Access Hacks . | . . . Unauthorized Hacks . | . . . Terminals . | . . . Fabricators . | . . . Repair Stations . | . . . Recycling Units . | . . . Scanalyzers . | . . . Garrison Access . | . . . Data Cores Recovered 1 | . 1 . Used . | . . . Hacking Detections 2 | . 2 . Full Trace Events 1 | . 1 . Feedback Events . | . . . Feedback Blocked . | . . . Robot Schematics Acquired . | . . . Robots Built . | . . . Authchips . | . . . Time . | . . . Total Robot Build Rating . | . . . Part Schematics Acquired . | . . . Parts Built . | . . . Authchips . | . . . Time . | . . . Total Part Build Rating . | . . . Parts Repaired . | . . . Time . | . . . Parts Recycled . | . . . Recycled Matter . | . . . Retrieved Matter . | . . . Retrieved Components . | . . . Parts Scanalyzed . | . . . Part Schematics Acquired . | . . . Parts Damaged . | . . . Bothacking | -11 -10 -10 ------------ Run | Jun Mat Min Used RIF Installer . | . . . Robots Hacked . | . . . Non-combat . | . . . Combat . | . . . Robot Hacks Applied . | . . . Relay Couplers Released . | . . . Fabnet Peak Effective % . | . . . Robots Rewired . | . . . Allies Hacked . | . . . Hacks Repelled . | . . . Allies | -11 -10 -10 -------- Run | Jun Mat Min Total Allies . | . . . Largest Group . | . . . Highest-Rated Group . | . . . Highest-Rated Ally . | . . . Total Orders . | . . . Ally Attacks . | . . . Total Damage . | . . . Kills . | . . . Allies Corrupted . | . . . Allies Melted . | . . . Intel | -11 -10 -10 ------- Run | Jun Mat Min Robot Analysis Total . | . . . Derelict Logs Recovered . | . . . Drone Launches . | . . . Drone Recoveries . | . . . Exploration | -11 -10 -10 ------------- Run | Jun Mat Min Turns Passed 515 | 84 393 38 Spaces Moved 326 | 52 240 34 Core 73 | 52 21 . Treads 36 | . 33 3 Legs 186 | . 186 . Wheels 31 | . . 31 Hover . | . . . Flight . | . . . Fastest Speed 50 | 50 120 100 Average Speed 131 | 144 132 105 Slowest Speed 200 | 200 200 160 Overloaded Moves . | . . . Propulsion Burnouts . | . . . Robots Hopped . | . . . Cave-ins Triggered . | . . . Exploration Rate (%) 23 | 5 47 19 Regions Visited 2 Branch Regions 1 Pre-discovered Areas . | . . . Known Exits Taken 1 | . 1 . Unknown Exits Taken 1 | 1 . . Scrap Searched . | . . . Spaces Dug . | . . . Terrain Destroyed . | . . . Melee . | . . . Projectile . | . . . AOE . | . . . Terrain Rammed . | . . . Walls Destroyed . | . . . Machines Disabled . | . . . Actions | -11 -10 -10 --------- Run | Jun Mat Min Total 390 | 61 293 36 Wait 8 | . 8 . Move 324 | 51 239 34 Hop . | . . . Pick Up 16 | 7 9 . Fast Attach 3 | 2 1 . Attach 6 | 1 4 1 Detach . | . . . Swap 6 | . 5 1 Drop 5 | . 5 . Fire 22 | . 22 . Melee . | . . . Ram . | . . . Kick . | . . . Crush . | . . . Escape Stasis . | . . . Rewire . | . . . Trap . | . . . Miscellaneous . | . . . Route ------- -11/Junkyard -10/Materials (discovered 3 exits: [*Mat x2] / *Min) -10/Mines (discovered 1 exit: [*Mat]) History --------- Turn | Location | Event 5 | -11/Junkyard | Discovered new exit (range 15) 85 | -11/Junkyard | Entered Materials 206 | -10/Materials | Discovered new exit (range 16) 294 | -10/Materials | Discovered new exit (range 15) 297 | -10/Materials | Identified exit to Mines 303 | -10/Materials | Build established: Mutant 478 | -10/Materials | Entered Mines 479 | -10/Mines | Assembled infested the area 481 | -10/Mines | Discovered new exit (range 9) 483 | -10/Mines | Met a Derelict bent on vengeance 487 | -10/Mines | Core integrity fell below 50% 498 | -10/Mines | Core integrity fell below 20% 516 | -10/Mines | Destroyed by D-53 Grenadier with Mini Grenade Launcher Last Messages --------------- 00480_ D-53 Grenadier unfolds itself. 00481_ Matter Pump disabled. 00481_ EXIT=FOUND 00484_ Lgt. Ion Engine destroyed. 00484_ K-01 Serf collects debris. 00486_ U-05 Engineer builds a Wall. 00488_ The unstable cave ceiling collapses. 00488_ K-01 Serf collects debris. 00489_ Assault Rifle destroyed. 00491_ U-05 Engineer lays Concrete. 00491_ Com. Wheel destroyed. 00492_ U-05 Engineer builds a Wall. 00494_ The unstable cave ceiling collapses. 00497_ Visual Processing Unit destroyed. 00497_ U-05 Engineer builds a Wall. 00500_ The unstable cave ceiling collapses. 00512_ as-42347 sneak attacks. 00512_ T-07 Excavator destroyed. 00516_ as-28350 destroyed. 00516_ as-42347 destroyed. Map ----- +----------------------------------------------------+ | | | | | | | | | | | | | ?????????????????????????????????????? | | ?????????????????????????????????????? | | ?????????????????????????????????????? | | ?????????????????????????????????????? | | ?????????????????????????????????????? | | ?????????????????????????????????????? | | ?????????????????????????????????????? | | ?????????????????????????????????????? | | ???????????###???????????????????????? | | ??????????## #??????????????????????? | | ?????????## ??????????????????????? | | ?????????# ??????????????????????? | | ?????????? #??????????????????????? | | ?????????? #??????????????????????? | | ??????????# ##?????????????????????? | | ??????????# ##????????????????????? | | ??????????# #????????????????????? | | ?????????## #????????????????????? | | ?????????# #????????????????????? | | ?????????# @ #????????????????????? | | ?????????## ######?????????????? | | ??????????## %=a|* =#????????????? | | ???????????# %! #####??????????????? | | ???????????## #??????????????????? | | ????????????# #??????????????????? | | ???????????## ###??????????????????? | | ??????????## ##??????????????????? | | ?????????## #??????????????????? | | ?????????# ##?????????????????? | | ?????????# d #?????????????????? | | ?????????## #?????????????????? | | ?????????#####d #?????????????????? | | ?????????# # ##?????????????????? | | ???????### ###??????????????????? | | ???????# ##???????????????????? | | ??????### #???????????????????? | | ??????# ##???????????????????? | | ??????# #????????????????????? | | ??????# ##????????????????????? | | ??????# #????????????????????? | | ?????# #????????????????????? | | ???### #????????????????????? | | ???# #????????????????????? | | ??# #???????????????????? | +----------------------------------------------------+ Best States ------------- Heat Dissipation 25 Energy Generation 10 Energy Capacity 125 Matter Stores 296 Matter Capacity 300 Sight Range 18 Terrain Scan Density 10 Evasion (%) 55 Recoil Reduction 2 Item Schematics ----------------- None Robot Schematics ------------------ None Fabricated ------------ Nothing Alien Tech Used ----------------- None Achievements -------------- None Challenges ------------ None Game ------ Seed PhysicsTachyonInjector Manual? 0 Play Time 00:08:44 Cumulative 58.5 hours Start 2024.01.08 @ 10:07:39 End 2024.01.08 @ 10:20:07 Sessions 1 Manual Loads 0 Difficulty Rogue Special Mode None Game No. 74 Rogue 74 Adventurer 0 Explorer 0 Win Type - Total 0 Types 0/0/0/0/0/0/0/0/0 Lore% 31 Gallery% 39 Achievement% 32 Wizard Run 0 Options --------- ASCII 0 Keyboard 0 Movement Mouse Keybinds 0 Fullscreen 2 Font 24/Smallcaps Map View 76x50 Tactical HUD 1 Map Filters NONE Filters NONE Steam 1 RUN: 5c30fbb5-5dd4-41b9-8ed7-fd236f7cf1d9